fUSD/lending_fUSD_20240210
["ID","MTS","AMOUNT","RATE_DAILY","PERIOD"]
[313679813,1707574286890,-289.04910445,0.00028841,2]
[313679814,1707574286899,-11125.48102698,0.00028841,2]
[313679815,1707574286909,-6068.92073313,0.00028841,2]
[313679816,1707574286920,-2170.43142613,0.00028841,2]
[313679817,1707574286930,-1482.53858649,0.00028841,2]
[313679818,1707574286939,-1321.37843928,0.00028841,2]
[313679819,1707574286951,-1437.97090914,0.00028841,2]
[313679820,1707574286960,-583.94515991,0.00028841,2]
[313679821,1707574286973,-392.12524095,0.00028841,2]
[313679822,1707574286983,-990.03490515,0.00028841,2]
[313679823,1707574286992,-598.13226752,0.00028841,2]
[313679824,1707574287002,-1103.84511304,0.00028841,2]
[313679825,1707574287011,-1909.41673073,0.00028841,2]
[313679826,1707574287022,-647.27176482,0.00028841,2]
[313679827,1707574287032,-589.84211561,0.00028841,2]
[313679828,1707574287042,-2089.12425807,0.00028841,2]
[313679829,1707574287052,-998.1777901,0.00028841,5]
[313679830,1707574287061,-4410.62609911,0.00028841,2]
[313679831,1707574287071,-2371.26885997,0.00028841,2]
[313679832,1707574287081,-1347.40384321,0.00028841,2]
[313679833,1707574287091,-2300.87176337,0.00028841,2]
[313679834,1707574287101,-2054.85339821,0.00028841,2]
[313679835,1707574287111,-706.70237079,0.00028841,2]
[313679836,1707574287121,-3967.2,0.00028841,2]
[313679837,1707574287130,-1618.37632584,0.00028841,2]
[313679838,1707574287140,-898.5257377,0.00028841,2]
[313679839,1707574287150,-1588.48620553,0.00028841,2]
[313679840,1707574287160,-1111.1320956,0.00028841,2]
[313679841,1707574287169,-1247.27227275,0.00028841,2]
[313679842,1707574287178,-4192.6116728,0.00028841,2]
[313679843,1707574287187,-1156.51090087,0.00028841,2]
[313679844,1707574287197,-1461.59695695,0.00028841,2]
[313679845,1707574287207,-918.29901054,0.00028841,2]
[313679846,1707574287217,-526.97633019,0.00028841,2]
[313679847,1707574287226,-2818.93260162,0.00028841,2]
[313679848,1707574287235,-4621.20655425,0.00028841,2]
[313679849,1707574287245,-557.07632475,0.00028841,2]
[313679850,1707574287255,-2330.08156836,0.00028841,2]
[313679851,1707574287264,-8653.01505622,0.00028841,2]
[313679852,1707574287274,-479.7353062,0.00028841,2]
[313679853,1707574287284,-1534.78084386,0.00028841,2]
[313679854,1707574287293,-854.77488879,0.00028841,2]
[313679855,1707574287303,-1344.99715823,0.00028841,2]
[313679856,1707574287313,-1507.6148439,0.00028841,2]
[313679857,1707574287322,-957.43527597,0.00028841,2]
[313679858,1707574287332,-2326.84204782,0.00028841,2]
[313679859,1707574287342,-716.38591551,0.00028841,2]
[313679860,1707574287350,-973.78,0.00028841,2]
[313679861,1707574287359,-1393.40828211,0.00028841,2]
[313679862,1707574287368,-5653.85238924,0.00028841,2]
[313679863,1707574287378,-1819.10468285,0.00028841,2]
[313679864,1707574287387,-674.76520498,0.00028841,2]
[313679865,1707574287396,-2027.25076137,0.00028841,2]
[313679866,1707574287406,-282.59807277,0.00028841,2]
[313679867,1707574287415,-930.15,0.00028841,5]
[313679868,1707574287424,-1623.83070104,0.00028841,2]
[313679869,1707574287433,-882.30497507,0.00028841,2]
[313679870,1707574287443,-1455.60851556,0.00028841,2]
[313679871,1707574287452,-2829.21322121,0.00028841,2]
[313679872,1707574287463,-729.9231959,0.00028841,2]
[313679873,1707574287472,-817.53582251,0.00028841,2]
[313679874,1707574287481,-1720.79051111,0.00028841,2]
[313679875,1707574287491,-1270.29684174,0.00028841,2]
[313679876,1707574287501,-1668.52534213,0.00028841,2]
[313679877,1707574287510,-555.93605399,0.00028841,2]
[313679878,1707574287520,-1505.91931417,0.00028841,2]
[313679879,1707574287530,-3972.10701951,0.00028841,2]
[313679880,1707574287539,-2185.09737133,0.00028841,2]
[313679881,1707574287548,-1817.99631175,0.00028841,2]
[313679882,1707574287558,-835.21966227,0.00028841,2]
[313679883,1707574287567,-211.0,0.0002898,2]
[313679884,1707574287576,-206.0,0.0002898,2]
[313679885,1707574287585,-8302.18796502,0.0002898,2]
[313679886,1707574287594,-1140.37424436,0.0002898,2]
[313679887,1707574287603,-8411.25822782,0.0002898,2]
[313679888,1707574287612,-2145.85918819,0.0002898,2]
[313679889,1707574287621,-853.53,0.0002898,2]
[313679890,1707574287630,-7722.64644444,0.0002898,2]
[313679891,1707574287640,-621.05680898,0.0002898,2]
[313679892,1707574287649,-587.0195445,0.0002898,2]
[313679893,1707574287658,-866.7474082,0.0002898,2]
[313679894,1707574287668,-5259.57868526,0.00029,15]
[313679895,1707574287677,-88892.7301,0.00029,2]
[313679896,1707574287686,-1350.0,0.00029,3]
[313679897,1707574287696,-150.0,0.00029041,2]
[313679898,1707574287705,-1069.81665847,0.00029111,2]
[313679899,1707574287715,-1043.955,0.00029111,2]
[313679900,1707574287724,-369.0,0.00029138,2]
[313679901,1707574287733,-152.0,0.00029199,4]
[313679902,1707574287742,-5000.0,0.000292,2]
[313679903,1707574287751,-211.0,0.0002923,2]
[313679904,1707574287760,-206.0,0.0002923,2]
[313679905,1707574287769,-208.0,0.00029439,9]
[313679906,1707574287778,-211.0,0.0002949,2]
[313679907,1707574287786,-206.0,0.0002949,2]
[313679908,1707574287795,-155.0,0.000295,3]
[313679909,1707574287805,-500.0,0.00029606,3]
[313679910,1707574287814,-217.0,0.0002961,2]
[313679911,1707574287825,-500.0,0.00029615,3]
[313679912,1707574287836,-500.0,0.00029624,3]
[313679913,1707574287845,-500.0,0.00029633,3]
[313679914,1707574287854,-500.0,0.00029642,3]
[313679915,1707574287863,-500.0,0.0002965,3]
[313679916,1707574287875,-500.0,0.00029659,3]
[313679917,1707574287884,-500.0,0.00029668,3]
[313679918,1707574287894,-500.0,0.00029677,3]
[313679919,1707574287903,-500.0,0.00029686,3]
[313679920,1707574287913,-500.0,0.00029694,3]
[313679921,1707574287922,-4944.00299631,0.00029699,2]
[313679922,1707574287935,-5000.0,0.000297,2]
[313679923,1707574287945,-500.0,0.00029703,3]
[313679924,1707574287954,-500.0,0.00029712,3]
[313679925,1707574287965,-500.0,0.00029721,3]
[313679926,1707574287974,-500.0,0.0002973,3]
[313679927,1707574287984,-500.0,0.00029738,3]
[313679928,1707574287993,-211.0,0.0002974,2]
[313679929,1707574288003,-206.0,0.0002974,2]
[313679930,1707574288012,-500.0,0.00029747,3]
[313679931,1707574288021,-500.0,0.00029756,3]
[313679932,1707574288031,-500.0,0.00029765,3]
[313679933,1707574288040,-500.0,0.00029774,3]
[313679934,1707574288049,-500.0,0.00029782,3]
[313679935,1707574288060,-23442.5665794,0.0002979,2]
[313679936,1707574288069,-500.0,0.00029791,3]
[313679937,1707574288079,-500.0,0.00029791,3]
[313679938,1707574288089,-630.12,0.00029795,2]
[313679939,1707574288098,-500.0,0.000298,3]
[313679940,1707574288107,-500.0,0.000298,3]
[313679941,1707574288117,-462.35,0.00029808,2]
[313679942,1707574288127,-500.0,0.00029814,3]
[313679943,1707574288136,-500.0,0.00029823,3]
[313679944,1707574288145,-500.0,0.00029832,3]
[313679945,1707574288154,-500.0,0.0002984,3]
[313679946,1707574288164,-500.0,0.00029849,3]
[313679947,1707574288172,-217.0,0.0002985,2]
[313679948,1707574288182,-259.55573786,0.00029856,2]
[313679949,1707574288191,-221.72347745,0.00029856,2]
[313679950,1707574288200,-227.38913805,0.00029856,2]
[313679951,1707574288209,-160.33106952,0.00029856,2]
[313679952,1707574288219,-500.0,0.00029858,3]
[313679953,1707574288228,-500.0,0.00029858,3]
[313679954,1707574288237,-500.0,0.00029863,3]
[313679955,1707574288245,-700.0,0.0002987,2]
[313679956,1707574288255,-500.0,0.00029888,3]
[313679957,1707574288264,-2341.9966757,0.00029897,2]
[313679958,1707574288274,-500.0,0.00029897,3]
[313679959,1707574288283,-1121917.6315124,0.000299,2]
[313679960,1707574288292,-657.0,0.000299,18]
[313679961,1707574288301,-211.0,0.0002999,2]
[313679962,1707574288310,-206.0,0.0002999,2]
[313679963,1707574288319,-155.0,0.00029997,2]
[313679964,1707574288328,-301.0,0.00029997,2]
[313679965,1707574288337,-502.0,0.00029997,2]
[313679966,1707574288347,-468.39933514,0.00029997,2]
[313679967,1707574288356,-405.46058209,0.0003,4]
[313679968,1707574288365,-17425.75936267,0.0003,4]
[313679969,1707574288375,-500.10670118,0.0003,30]
[313679970,1707574288384,-142203.74150908,0.0003,2]
[313679971,1707574288393,-6535.6695106,0.0003,4]
[313679972,1707574288401,-196.12353813,0.0003,4]
[313679973,1707574288411,-155.0,0.0003,4]
[313679974,1707574288420,-448.14381676,0.0003,4]
[313679975,1707574288429,-363.34,0.0003,3]
[313679976,1707574288438,-2000.0,0.0003,3]
[313679977,1707574288447,-605.36454383,0.0003,4]
[313679978,1707574288456,-8935.33586839,0.0003,2]
[313679979,1707574288465,-300.0,0.0003,31]
[313679980,1707574288474,-150.3636016,0.0003,2]
[313679981,1707574288484,-197.94549365,0.0003,2]
[313679982,1707574288493,-763.0,0.0003,3]
[313679983,1707574288502,-200.0,0.0003,2]
[313679984,1707574288512,-1380.86848933,0.0003,2]
[313679985,1707574288522,-158.12055043,0.0003,4]
[313679986,1707574288531,-6384.2852679,0.0003,2]
[313679987,1707574288540,-311.67510517,0.0003,30]
[313679988,1707574288550,-5993.9825963,0.0003,4]
[313679989,1707574288559,-10414.48682637,0.0003,3]
[313679990,1707574288568,-1000.0,0.0003,2]
[313679991,1707574288577,-4435.398625,0.0003,2]
[313679992,1707574288587,-818.92618057,0.0003,4]
[313679993,1707574288596,-512.86976801,0.0003,4]
[313679994,1707574288605,-155.33509816,0.0003,4]
[313679995,1707574288614,-910.73661852,0.0003,4]
[313679996,1707574288624,-209.70976979,0.0003,4]
[313679997,1707574288633,-155.46573097,0.0003,4]
[313679998,1707574288642,-337431.1069535,0.0003,4]
[313679999,1707574288652,-3000.0,0.0003,2]
[313680000,1707574288662,-153.84,0.0003,2]
[313680001,1707574288672,-153.84,0.0003,2]
[313680002,1707574288681,-153.84,0.0003,2]
[313680003,1707574288691,-153.84,0.0003,2]
[313680004,1707574288700,-153.84,0.0003,2]
[313680005,1707574288710,-153.84,0.0003,2]
[313680006,1707574288720,-153.84,0.0003,2]
[313680007,1707574288729,-153.84,0.0003,2]
[313680008,1707574288738,-237.834768,0.0003,2]
[313680009,1707574288748,-1985.878949,0.0003,2]
[313680010,1707574288757,-200.0,0.0003,2]
[313680011,1707574288767,-1760.70364,0.0003,2]
[313680012,1707574288777,-1760.70364,0.0003,2]
[313680013,1707574288786,-1760.70365,0.0003,2]
[313680014,1707574288796,-1760.70364,0.0003,2]
[313680015,1707574288805,-1760.70364,0.0003,2]
[313680016,1707574288815,-1760.70365,0.0003,2]
[313680017,1707574288824,-188.837805,0.0003,2]
[313680018,1707574288834,-1000.0,0.0003,2]
[313680019,1707574288843,-3000.0,0.0003001,2]
[313680020,1707574288853,-5467.234947,0.0003002,2]
[313680021,1707574288863,-152.0,0.00030085,5]
[313680022,1707574288875,-500.0,0.00030136,2]
[313680023,1707574288885,-300.0,0.00030136,10]
[313680024,1707574288894,-302.18227299,0.00030136,10]
[313680025,1707574288903,-500.0,0.00030136,20]
[313680026,1707574288913,-500.0,0.00030136,20]
[313680027,1707574288923,-529.37414691,0.00030136,20]
[313680028,1707574288932,-152.24,0.00030137,2]
[313680029,1707574288942,-197.66,0.00030339,2]
[313680030,1707574288952,-657.0,0.000304,19]
[313680031,1707574288961,-500.0,0.0003041,2]
[313680032,1707574288971,-453.0,0.0003043,2]
[313680033,1707574288980,-153.0,0.000305,2]
[313680034,1707574288989,-1488.73327603,0.00030581,7]
[313680035,1707574288998,-180.30396734,0.00030581,7]
[313680036,1707574289008,-500.0,0.00030684,2]
[313680037,1707574289017,-1000.0,0.000307,2]
[313680038,1707574289026,-657.0,0.000309,19]
[313680039,1707574289035,-500.0,0.00030958,2]
[313680040,1707574289045,-152.0,0.00030971,6]
[313680041,1707574289055,-300.0,0.00031,32]
[313680042,1707574289065,-20000.0,0.00031,2]
[313680043,1707574289074,-7190.58499557,0.00031,7]
[313680044,1707574289084,-1400.0,0.00031,3]
[313680045,1707574289096,-316.18,0.00031,2]
[313680046,1707574289105,-187.78,0.00031033,2]
[313680047,1707574289115,-500.0,0.00031232,2]
[313680048,1707574289124,-151.0,0.00031292,120]
[313680049,1707574289134,-657.0,0.000314,20]
[313680050,1707574289144,-8518.03405038,0.0003143,4]
[313680051,1707574289154,-1858.0,0.0003146,2]
[313680052,1707574289163,-840.0,0.0003146,2]
[313680053,1707574289172,-500.0,0.00031506,2]
[313680054,1707574289182,-180.0,0.00031644,2]
[313680055,1707574289191,-153.52,0.00031644,2]
[313680056,1707574289201,-216.0,0.00031706,2]
[313680057,1707574289210,-1232.0,0.00031706,2]
[313680058,1707574289220,-1253.0,0.00031706,2]
[313680059,1707574289230,-633.604,0.00031706,2]
[313680060,1707574289239,-428.0,0.00031706,2]
[313680061,1707574289250,-1726.578,0.00031706,2]
[313680062,1707574289259,-1138.0,0.00031706,2]
[313680063,1707574289269,-858.0,0.00031706,2]
[313680064,1707574289278,-150.0,0.00031706,2]
[313680065,1707574289288,-321.0,0.00031706,2]
[313680066,1707574289298,-343.0,0.00031706,2]
[313680067,1707574289308,-4575.947,0.0003171,2]
[313680068,1707574289318,-19818.0,0.0003171,2]
[313680069,1707574289328,-2922.0,0.0003171,2]
[313680070,1707574289338,-2545.732,0.0003171,2]
[313680071,1707574289347,-2286.0,0.0003171,2]
[313680072,1707574289357,-1036.0,0.0003171,2]
[313680073,1707574289367,-150.0,0.0003171,2]
[313680074,1707574289376,-150.0,0.00031768,2]
[313680075,1707574289386,-1275.24,0.00031768,2]
[313680076,1707574289395,-951.0,0.00031768,2]
[313680077,1707574289404,-500.0,0.0003178,2]
[313680078,1707574289413,-558.0,0.0003178,3]
[313680079,1707574289423,-49542.4731595,0.000318,3]
[313680080,1707574289433,-152.0,0.00031856,7]
[313680081,1707574289442,-3000.0,0.000319,2]
[313680082,1707574289452,-657.0,0.000319,20]
[313680083,1707574289462,-151.0,0.0003193,30]
[313680084,1707574289472,-152.24,0.00031963,2]
[313680085,1707574289481,-11306.05762351,0.00032,7]
[313680086,1707574289491,-13140.53337378,0.00032,4]
[313680087,1707574289500,-300.0,0.00032,33]
[313680088,1707574289509,-50000.0,0.00032,10]
[313680089,1707574289519,-500.0,0.00032054,2]
[313680090,1707574289528,-500.0,0.00032328,2]
[313680091,1707574289537,-657.0,0.000324,21]
[313680092,1707574289546,-10000.0,0.000325,2]
[313680093,1707574289556,-1000.0,0.000325,2]
[313680094,1707574289565,-630.12,0.00032504,2]
[313680095,1707574289574,-462.35,0.00032518,2]
[313680096,1707574289728,-985.9,0.0003254,7]
[313680097,1707574289738,-152.8430856,0.0003258,2]
[313680098,1707574289748,-316.18,0.0003258,2]
[313680099,1707574289757,-151.0,0.00032582,7]
[313680100,1707574289766,-500.0,0.00032602,2]
[313680101,1707574289776,-1454.86748675,0.000327,2]
[313680102,1707574289785,-152.0,0.00032742,8]
[313680103,1707574289794,-204.0,0.00032753,2]
[313680104,1707574289803,-18452.28517863,0.0003278,5]
[313680105,1707574289813,-500.0,0.00032876,2]
[313680106,1707574289822,-2731.74,0.00032876,2]
[313680107,1707574289831,-500.0,0.00032876,2]
[313680108,1707574289841,-500.0,0.00032876,2]
[313680109,1707574289850,-500.0,0.00032876,2]
[313680110,1707574289859,-500.0,0.00032876,2]
[313680111,1707574289869,-500.0,0.00032876,2]
[313680112,1707574289882,-500.0,0.00032876,2]
[313680113,1707574289891,-500.0,0.00032876,2]
[313680114,1707574289900,-500.0,0.00032876,2]
[313680115,1707574289910,-500.0,0.00032876,2]
[313680116,1707574289921,-500.0,0.00032876,2]
[313680117,1707574289930,-500.0,0.00032876,2]
[313680118,1707574289939,-500.0,0.00032876,2]
[313680119,1707574289949,-500.0,0.00032876,2]
[313680120,1707574289958,-500.0,0.00032876,2]
[313680121,1707574289968,-500.0,0.00032876,2]
[313680122,1707574289978,-500.0,0.00032876,2]
[313680123,1707574289987,-500.0,0.00032876,2]
[313680124,1707574289996,-500.0,0.00032876,2]
[313680125,1707574290006,-500.0,0.00032876,2]
[313680126,1707574290015,-500.0,0.00032876,2]
[313680127,1707574290025,-258.72515798,0.00032876,2]
[313680128,1707574290034,-869.63563388,0.00032876,3]
[313680129,1707574290044,-1000.0,0.00032876,2]
[313680130,1707574290054,-1107.30533827,0.00032876,2]
[313680131,1707574290063,-500.0,0.00032877,2]
[313680132,1707574290074,-500.0,0.000329,2]
[313680133,1707574290083,-375.0,0.000329,2]
[313680134,1707574290093,-657.0,0.000329,21]
[313680135,1707574290102,-491.43130255,0.00033,4]
[313680136,1707574290112,-300.0,0.00033,34]
[313680137,1707574290121,-1412.67810569,0.00033,2]
[313680138,1707574290131,-1013.0,0.00033,3]
[313680139,1707574290140,-1005.0,0.00033,3]
[313680140,1707574290149,-1450.0,0.00033,3]
[313680141,1707574290159,-1000.0,0.00033,2]
[313680142,1707574290168,-438.79922438,0.0003315,2]
[313680143,1707574290178,-220.0,0.00033189,3]
[313680144,1707574290188,-151.0,0.00033247,4]
[313680145,1707574290197,-187.78,0.00033297,2]
[313680146,1707574290207,-1000.0,0.000334,2]
[313680147,1707574290217,-657.0,0.000334,22]
[313680148,1707574290226,-5080.35077107,0.00033488,2]
[313680149,1707574290235,-2493.16,0.000335,2]
[313680150,1707574290244,-2493.16,0.000335,2]
[313680151,1707574290254,-2493.16,0.000335,2]
[313680152,1707574290264,-2493.16,0.000335,2]
[313680153,1707574290274,-2493.16,0.000335,2]
[313680154,1707574290283,-2493.16,0.000335,2]
[313680155,1707574290293,-2493.16,0.000335,2]
[313680156,1707574290303,-2493.16,0.000335,2]
[313680157,1707574290313,-2493.16,0.000335,2]
[313680158,1707574290322,-2493.16,0.000335,2]
[313680159,1707574290332,-2493.16,0.000335,2]
[313680160,1707574290341,-2493.16,0.000335,2]
[313680161,1707574290351,-2493.16,0.000335,2]
[313680162,1707574290360,-2493.16,0.000335,2]
[313680163,1707574290370,-2493.16,0.000335,2]
[313680164,1707574290379,-2493.16,0.000335,2]
[313680165,1707574290389,-2493.16,0.000335,2]
[313680166,1707574290398,-2493.16,0.000335,2]
[313680167,1707574290408,-2493.16,0.000335,2]
[313680168,1707574290417,-2493.16,0.000335,2]
[313680169,1707574290426,-152.0,0.00033628,9]
[313680170,1707574290436,-152.24,0.0003379,2]
[313680171,1707574290445,-208.0,0.00033805,16]
[313680172,1707574290455,-657.0,0.000339,23]
[313680173,1707574290464,-154.507547,0.000339,2]
[313680174,1707574290474,-154.50754697,0.000339,2]
[313680175,1707574290483,-154.50754697,0.000339,2]
[313680176,1707574290492,-154.50754697,0.000339,2]
[313680177,1707574290502,-154.50754697,0.000339,2]
[313680178,1707574290511,-154.50754697,0.000339,2]
[313680179,1707574290520,-154.50754697,0.000339,2]
[313680180,1707574290529,-154.50754697,0.000339,2]
[313680181,1707574290539,-154.50754697,0.000339,2]
[313680182,1707574290549,-154.50754697,0.000339,2]
[313680183,1707574290558,-154.50754697,0.000339,2]
[313680184,1707574290568,-154.50754697,0.000339,2]
[313680185,1707574290577,-154.50754697,0.000339,2]
[313680186,1707574290586,-500.0,0.00033904,2]
[313680187,1707574290595,-154.50754697,0.00033917,2]
[313680188,1707574290605,-151.0,0.00033925,2]
[313680189,1707574290614,-766.92032321,0.00034,4]
[313680190,1707574290623,-300.0,0.00034,35]
[313680191,1707574290632,-274.73647167,0.00034,4]
[313680192,1707574290642,-316.18,0.0003416,2]
[313680193,1707574290651,-1000.0,0.00034264,7]
[313680194,1707574290660,-1000.0,0.00034264,7]
[313680195,1707574290670,-1000.0,0.00034264,7]
[313680196,1707574290678,-153.84,0.000344,2]
[313680197,1707574290688,-153.84,0.000344,2]
[313680198,1707574290697,-153.84,0.000344,2]
[313680199,1707574290706,-153.84,0.000344,2]
[313680200,1707574290716,-153.84,0.000344,2]
[313680201,1707574290725,-153.84,0.000344,2]
[313680202,1707574290735,-153.84,0.000344,2]
[313680203,1707574290744,-153.84,0.000344,2]
[313680204,1707574290753,-153.84,0.000344,2]
[313680205,1707574290762,-153.84,0.000344,2]
[313680206,1707574290771,-153.84,0.000344,2]
[313680207,1707574290780,-153.84,0.000344,2]
[313680208,1707574290789,-153.84,0.000344,2]
[313680209,1707574290798,-153.84,0.000344,2]
[313680210,1707574290808,-153.84,0.000344,2]
[313680211,1707574290817,-153.84,0.000344,2]
[313680212,1707574290826,-657.0,0.000344,23]
[313680213,1707574290836,-1003.933,0.0003446,2]
[313680214,1707574290845,-840.0,0.0003446,2]
[313680215,1707574290856,-152.0,0.00034514,10]
[313680216,1707574290865,-3547.04847,0.0003452,2]
[313680217,1707574290877,-14151.965019,0.0003452,2]
[313680218,1707574290886,-939.81,0.0003452,2]
[313680219,1707574290896,-150.0,0.00034548,10]
[313680220,1707574290906,-216.0,0.00034706,2]
[313680221,1707574290916,-1232.0,0.00034706,2]
[313680222,1707574290926,-1253.0,0.00034706,2]
[313680223,1707574290936,-428.0,0.00034706,2]
[313680224,1707574290946,-1138.0,0.00034706,2]
[313680225,1707574290955,-858.0,0.00034706,2]
[313680226,1707574290965,-150.0,0.00034706,2]
[313680227,1707574290974,-321.0,0.00034706,2]
[313680228,1707574290984,-291.071,0.00034706,2]
[313680229,1707574290993,-19818.0,0.0003471,2]
[313680230,1707574291002,-2922.0,0.0003471,2]
[313680231,1707574291012,-1036.0,0.0003471,2]
[313680232,1707574291022,-150.0,0.0003471,2]
[313680233,1707574291031,-150.0,0.00034768,2]
[313680234,1707574291041,-951.0,0.00034768,2]
[313680235,1707574291050,-154.50754697,0.00034789,2]
[313680236,1707574291059,-5320.572705,0.00034794,2]
[313680237,1707574291068,-21227.947529,0.00034794,2]
[313680238,1707574291078,-1409.715,0.00034794,2]
[313680239,1707574291087,-150.0,0.00034795,2]
[313680240,1707574291096,-1000.0,0.000348,5]
[313680241,1707574291106,-9011.25513995,0.000349,4]
[313680242,1707574291115,-3493.59169167,0.000349,2]
[313680243,1707574291124,-3493.59169159,0.000349,2]
[313680244,1707574291133,-3493.59169159,0.000349,2]
[313680245,1707574291142,-3493.59169159,0.000349,2]
[313680246,1707574291152,-3493.59169159,0.000349,2]
[313680247,1707574291161,-3493.59169159,0.000349,2]
[313680248,1707574291170,-3493.59169159,0.000349,2]
[313680249,1707574291179,-3493.59169159,0.000349,2]
[313680250,1707574291188,-657.0,0.000349,24]
[313680251,1707574291197,-150.0,0.0003492,7]
[313680252,1707574291206,-173.37654324,0.0003492,7]
[313680253,1707574291215,-158.64831441,0.0003492,7]
[313680254,1707574291224,-155.36860103,0.0003492,7]
[313680255,1707574291233,-150.0,0.0003492,7]
[313680256,1707574291242,-160.48848656,0.0003492,7]
[313680257,1707574291251,-160.3380029,0.0003492,7]
[313680258,1707574291261,-163.7548506,0.0003492,7]
[313680259,1707574291270,-159.70240956,0.0003492,7]
[313680260,1707574291279,-158.05491676,0.0003492,7]
[313680261,1707574291288,-7094.09694,0.00034931,2]
[313680262,1707574291297,-28303.930039,0.00034931,2]
[313680263,1707574291306,-1879.62,0.00034931,2]
[313680264,1707574291316,-500.0,0.00034932,2]
[313680265,1707574291326,-468.39933514,0.00034997,2]
[313680266,1707574291335,-50000.0,0.00035,5]
[313680267,1707574291344,-389.23841484,0.00035,4]
[313680268,1707574291353,-155.0,0.00035,4]
[313680269,1707574291362,-3443.85396688,0.00035,5]
[313680270,1707574291371,-1000.0,0.00035,2]
[313680271,1707574291380,-407.8310623,0.00035,6]
[313680272,1707574291389,-10000.0,0.00035,3]
[313680273,1707574291398,-184.50342284,0.00035,5]
[313680274,1707574291408,-161.10571499,0.00035,2]
[313680275,1707574291417,-1267.96624518,0.00035,4]
[313680276,1707574291426,-74469.93945586,0.00035,4]
[313680277,1707574291435,-15863.16807961,0.00035,7]
[313680278,1707574291445,-1500.0,0.00035,3]
[313680279,1707574291454,-1311.94684187,0.00035,2]
[313680280,1707574291463,-1311.94684187,0.00035,2]
[313680281,1707574291473,-1311.94684187,0.00035,2]
[313680282,1707574291482,-597.96393254,0.00035,2]
[313680283,1707574291491,-597.96393254,0.00035,2]
[313680284,1707574291500,-597.96393254,0.00035,2]
[313680285,1707574291509,-164.0,0.00035,2]
[313680286,1707574291519,-12272.18675706,0.00035,2]
[313680287,1707574291530,-12272.18675706,0.00035,2]
[313680288,1707574291539,-12272.18675706,0.00035,2]
[313680289,1707574291548,-12272.18675706,0.00035,2]
[313680290,1707574291558,-172.0,0.00035,2]
[313680291,1707574291567,-300.0,0.00035,36]
[313680292,1707574291577,-10605.61974278,0.00035,2]
[313680293,1707574291586,-8867.621175,0.00035068,2]
[313680294,1707574291596,-35379.912549,0.00035068,2]
[313680295,1707574291605,-2349.525,0.00035068,2]
[313680296,1707574291614,-524.21608598,0.00035068,3]
[313680297,1707574291623,-1018.73708257,0.00035068,3]
[313680298,1707574291632,-361.57125393,0.00035068,3]
[313680299,1707574291641,-93067.94522933,0.0003509,2]
[313680300,1707574291650,-16228.68194137,0.00035111,3]
[313680301,1707574291659,-3493.59169159,0.00035212,2]
[313680302,1707574291668,-58000.0,0.00035305,3]
[313680303,1707574291677,-58000.0,0.00035339,3]
[313680304,1707574291687,-19583.04687239,0.00035341,3]
[313680305,1707574291696,-12414.669645,0.00035342,2]
[313680306,1707574291705,-49531.877569,0.00035342,2]
[313680307,1707574291714,-3289.335,0.00035342,2]
[313680308,1707574291723,-12000.0,0.00035361,8]
[313680309,1707574291733,-152.0,0.00035399,11]
[313680310,1707574291741,-155.75334293,0.00035399,5]
[313680311,1707574291750,-152.0,0.00035399,3]
[313680312,1707574291759,-152.0,0.00035399,5]